bitfinex/quotes_BTCUSD_20251212
["timestamp","ask_amount","ask_price","bid_price","bid_amount"]
[1765510570132,0.02400569,92312.0,92309.0,0.01083317]
[1765510570343,0.02341,92310.0,92309.0,0.01083317]
[1765510570544,0.03942,92310.0,92309.0,0.01083317]
[1765510570774,0.03942,92310.0,92308.0,0.22749847]
[1765510570974,0.05025317,92309.0,92306.0,0.01083353]
[1765510571177,0.02757,92307.0,92306.0,0.22750276]
[1765510571347,0.02757,92307.0,92306.0,0.01083353]
[1765510571583,0.05098,92307.0,92306.0,0.01083353]
[1765510571760,0.05098,92307.0,92305.0,0.01083364]
[1765510571964,0.03942,92306.0,92303.0,0.01083388]
[1765510572171,0.01601,92304.0,92301.0,0.22751606]
[1765510572375,0.02341,92305.0,92303.0,0.21667591]
[1765510572577,0.03942,92304.0,92303.0,0.21667591]
[1765510573304,0.11402839,92304.0,92303.0,0.001]
[1765510573669,0.03942,92304.0,92303.0,0.21667768]
[1765510574116,0.04042,92304.0,92303.0,0.21767768]
[1765510579009,0.04042,92304.0,92303.0,0.001]
[1765510582367,0.08501451,92304.0,92303.0,0.001]
[1765510583873,0.04042,92304.0,92303.0,0.001]
[1765510584317,0.001,92304.0,92303.0,0.001]
[1765510584516,0.001,92304.0,92303.0,0.02266776]
[1765510587293,0.001,92304.0,92303.0,0.11581413]
[1765510587688,0.0004,92320.0,92317.0,0.01083224]
[1765510587896,0.0004,92320.0,92319.0,0.03253073]
[1765510588887,0.0014,92320.0,92319.0,0.03253073]
[1765510590355,0.0004,92320.0,92319.0,0.03253073]
[1765510590657,0.0024,92320.0,92319.0,0.03353073]
[1765510593116,0.002323,92320.0,92319.0,0.03353073]
[1765510605099,0.05365587,92320.0,92319.0,0.03353073]
[1765510605304,0.09825038,92320.0,92319.0,0.03353073]
[1765510606825,0.09825038,92320.0,92319.0,0.001]
[1765510613478,0.05365587,92320.0,92319.0,0.001]
[1765510613650,0.03037587,92320.0,92319.0,0.001]
[1765510613826,0.00393587,92320.0,92319.0,0.001]
[1765510615933,0.04381587,92320.0,92319.0,0.001]
[1765510620384,0.07089559,92320.0,92319.0,0.001]
[1765510620826,0.04381587,92320.0,92319.0,0.001]
[1765510621037,0.1154901,92320.0,92319.0,0.001]
[1765510621660,0.07089559,92320.0,92319.0,0.001]
[1765510623107,0.04381587,92320.0,92319.0,0.001]
[1765510626260,0.00393587,92320.0,92319.0,0.001]
[1765510627643,0.04381587,92320.0,92319.0,0.001]
[1765510629088,0.00393587,92320.0,92319.0,0.001]
[1765510629519,0.002323,92320.0,92319.0,0.001]
[1765510631145,0.002323,92320.0,92319.0,0.02266401]
[1765510632000,0.002323,92320.0,92319.0,0.06579199]
[1765510632210,0.002323,92320.0,92319.0,0.02266401]
[1765510632419,0.002323,92320.0,92319.0,0.06579199]
[1765510634678,0.002323,92320.0,92319.0,0.02266401]
[1765510634890,0.002323,92320.0,92319.0,0.06579199]
[1765510637365,0.002323,92320.0,92319.0,0.02266401]
[1765510637717,0.002323,92320.0,92319.0,0.45098536]
[1765510637855,0.002323,92320.0,92319.0,0.35172488]
[1765510638478,0.000323,92320.0,92319.0,0.35072488]
[1765510638880,0.001323,92320.0,92319.0,0.35172488]
[1765510639679,0.001323,92320.0,92319.0,0.35272488]
[1765510640049,0.000323,92320.0,92319.0,0.35072488]
[1765510640210,0.000323,92320.0,92319.0,0.35472488]
[1765510640385,0.001323,92320.0,92319.0,0.43440993]
[1765510640578,0.001323,92320.0,92319.0,0.44351649]
[1765510641398,0.001323,92320.0,92319.0,0.36583144]
[1765510642240,0.001323,92320.0,92319.0,0.44351649]
[1765510642397,0.001323,92320.0,92319.0,0.37290495]
[1765510643026,0.001323,92320.0,92319.0,0.41603293]
[1765510647424,0.001323,92320.0,92319.0,0.39895293]
[1765510647570,0.001323,92320.0,92319.0,0.41603293]
[1765510650337,0.001323,92320.0,92319.0,0.36601454]
[1765510650775,0.001323,92320.0,92319.0,0.04763729]
[1765510651081,0.001323,92320.0,92319.0,0.03853073]
[1765510652043,0.000323,92320.0,92319.0,0.03253073]
[1765510652265,0.000323,92320.0,92319.0,0.03553073]
[1765510652468,0.04193587,92320.0,92319.0,0.004]
[1765510652696,0.13955383,92320.0,92319.0,0.004]
[1765510653093,0.08653038,92320.0,92319.0,0.004]
[1765510653276,0.08553038,92320.0,92319.0,0.003]
[1765510653477,0.01083247,92315.0,92311.0,0.01083294]
[1765510653681,0.01083259,92314.0,92311.0,0.01083294]
[1765510653877,0.00161287,92314.0,92312.0,0.21665655]
[1765510655927,0.00261287,92314.0,92312.0,0.21665655]
[1765510656134,0.00461287,92314.0,92312.0,0.21665655]
[1765510658552,0.04983271,92313.0,92310.0,0.01083306]
[1765510659008,0.039,92313.0,92311.0,0.2166589]
[1765510659213,0.01612,92313.0,92311.0,0.2166589]
[1765510659389,0.00261287,92314.0,92311.0,0.22749184]
[1765510659805,0.002,92313.0,92311.0,0.22749184]
[1765510660014,0.003,92313.0,92311.0,0.22749184]
[1765510660393,0.002,92313.0,92311.0,0.22749184]
[1765510661155,0.00261287,92314.0,92311.0,0.22749184]
[1765510661365,0.00461287,92314.0,92311.0,0.22849184]
[1765510661896,0.00161287,92314.0,92311.0,0.22749184]
[1765510662028,0.001,92313.0,92311.0,0.22749184]
[1765510662232,0.003,92313.0,92311.0,0.22849184]
[1765510662601,0.002,92313.0,92311.0,0.22849184]
[1765510663232,0.001,92313.0,92311.0,0.22749184]
[1765510664451,0.001,92313.0,92311.0,0.22849184]
[1765510664839,0.001,92313.0,92311.0,0.22749184]
[1765510665285,0.003,92313.0,92311.0,0.22849184]
[1765510666419,0.003,92313.0,92311.0,0.01183294]
[1765510666628,0.04083,92312.0,92311.0,0.01183294]
[1765510666812,0.003,92313.0,92311.0,0.01183294]
[1765510667231,0.003,92313.0,92312.0,0.2383222]
[1765510667441,0.001,92313.0,92312.0,0.21665655]
[1765510668020,0.000323,92320.0,92319.0,0.21664012]
[1765510669267,0.026863,92320.0,92319.0,0.001]
[1765510669469,0.043153,92320.0,92319.0,0.001]
[1765510669690,0.044153,92320.0,92319.0,0.001]
[1765510669905,0.07123272,92320.0,92319.0,0.001]
[1765510670217,0.07284559,92320.0,92319.0,0.001]
[1765510672482,0.1174401,92320.0,92319.0,0.001]
[1765510676882,0.1287101,92320.0,92319.0,0.001]
[1765510679391,0.1287101,92320.0,92312.0,0.01083282]
[1765510679392,0.01083224,92317.0,92314.0,0.01083259]
[1765510679588,0.01083224,92317.0,92312.0,0.01083282]
[1765510679589,0.04459451,92314.0,92312.0,0.01083282]
[1765510679831,0.03839271,92313.0,92310.0,0.01083306]
[1765510680080,0.01629,92311.0,92310.0,0.22749424]
[1765510680292,0.01320587,92320.0,92318.0,0.21664194]
[1765510680539,0.00193587,92320.0,92318.0,0.21664194]
[1765510681317,0.00893587,92320.0,92319.0,0.001]
[1765510681463,0.01493587,92320.0,92319.0,0.001]
[1765510681677,0.00793587,92320.0,92318.0,0.21664194]
[1765510682103,0.00893587,92320.0,92318.0,0.21664194]
[1765510682302,0.006323,92320.0,92318.0,0.21664194]
[1765510682505,0.000323,92320.0,92318.0,0.21664194]
[1765510682878,0.003323,92320.0,92318.0,0.21664194]
[1765510683266,0.001323,92320.0,92318.0,0.21664194]
[1765510683473,0.000323,92320.0,92318.0,0.21664194]
[1765510683711,0.002323,92320.0,92318.0,0.21664194]
[1765510691711,0.002323,92320.0,92319.0,0.01826378]
[1765510692135,0.002323,92320.0,92318.0,0.21664194]
[1765510692550,0.000323,92320.0,92318.0,0.21664194]
[1765510692884,0.002323,92320.0,92319.0,0.001]
[1765510693295,0.000323,92320.0,92318.0,0.21664194]
[1765510693492,0.04083,92319.0,92318.0,0.21664194]
[1765510693818,0.00193587,92320.0,92318.0,0.21664194]
[1765510694593,0.00393587,92320.0,92318.0,0.21764194]
[1765510701158,0.03797,92319.0,92318.0,0.21764194]
[1765510702012,0.03797,92319.0,92318.0,0.21664194]
[1765510702393,0.03997,92319.0,92318.0,0.21764194]
[1765510702602,0.01727,92319.0,92318.0,0.21764194]
[1765510703822,0.002,92319.0,92318.0,0.21764194]
[1765510706052,0.03997,92319.0,92318.0,0.001]
[1765510706633,0.04221503,92319.0,92318.0,0.001]
[1765510707061,0.11895945,92319.0,92318.0,0.001]
[1765510707443,0.08680954,92319.0,92318.0,0.001]
[1765510707643,0.04221503,92319.0,92318.0,0.001]
[1765510709282,0.00424503,92319.0,92318.0,0.001]
[1765510711063,0.00424503,92319.0,92318.0,0.02266424]
[1765510713278,0.00424503,92319.0,92318.0,0.001]
[1765510713660,0.00424503,92319.0,92318.0,0.02266424]
[1765510714484,0.00224503,92319.0,92318.0,0.03874424]
[1765510714686,0.00324503,92319.0,92318.0,0.03974424]
[1765510714894,0.00324503,92319.0,92318.0,0.04002424]
[1765510715075,0.00324503,92319.0,92318.0,0.04202424]
[1765510715406,0.00324503,92319.0,92318.0,0.05203073]
[1765510715626,0.00324503,92319.0,92318.0,0.34273073]
[1765510715825,0.00324503,92319.0,92318.0,0.32106649]
[1765510716259,0.00324503,92319.0,92318.0,0.37108488]
[1765510722117,0.00324503,92319.0,92318.0,0.44882822]
[1765510725247,0.00324503,92319.0,92318.0,0.37108488]
[1765510727803,0.00910656,92344.0,92341.0,0.22741624]
[1765510728014,0.00949635,92344.0,92343.0,0.03253073]
[1765510728427,0.00949635,92344.0,92343.0,0.24911455]
[1765510728927,0.01549635,92344.0,92343.0,0.24911455]
[1765510729524,0.00949635,92344.0,92343.0,0.24911455]
[1765510729750,0.01549635,92344.0,92343.0,0.24911455]
[1765510729925,0.02249635,92344.0,92343.0,0.25011455]
[1765510732496,0.02249635,92344.0,92343.0,0.21758382]
[1765510732913,0.02410922,92344.0,92343.0,0.21758382]
[1765510738662,0.02483046,92344.0,92343.0,0.21758382]
[1765510744312,0.02321759,92344.0,92343.0,0.21758382]
[1765510744514,0.02321759,92344.0,92343.0,0.22759031]
[1765510745137,0.02321759,92344.0,92343.0,0.54576123]
[1765510745138,0.01721759,92344.0,92343.0,0.54576123]
[1765510745339,0.01221759,92344.0,92343.0,0.54576123]
[1765510746308,0.01221759,92344.0,92343.0,0.54976123]
[1765510746450,0.01021759,92344.0,92343.0,0.54876123]
[1765510746879,0.01121759,92344.0,92343.0,0.55176123]
[1765510748175,0.01121759,92344.0,92343.0,0.62953146]
[1765510749165,0.01121759,92344.0,92343.0,0.55176123]
[1765510752265,0.01121759,92344.0,92343.0,0.60177962]
[1765510752469,0.01121759,92344.0,92343.0,0.67954985]
[1765510752837,0.01121759,92344.0,92343.0,0.60177962]
[1765510756201,0.01121759,92344.0,92343.0,0.67945925]
[1765510756563,0.0004,92350.0,92349.0,0.60041612]
[1765510756767,0.00044221,92350.0,92349.0,0.63294685]
[1765510757207,0.00044221,92350.0,92349.0,0.63728054]
[1765510757814,0.00144221,92350.0,92349.0,0.64028054]
[1765510758067,0.00144221,92350.0,92349.0,0.64328054]
[1765510763463,0.00023075,92352.0,92351.0,0.55728345]
[1765510763669,0.00023075,92352.0,92351.0,0.60041143]
[1765510764098,0.00023075,92352.0,92351.0,0.60474492]
[1765510764680,0.00123075,92352.0,92351.0,0.60874492]
[1765510764878,0.00123075,92352.0,92351.0,0.68642204]
[1765510765081,0.00123075,92352.0,92351.0,0.60874492]
[1765510765284,0.0004,92360.0,92359.0,0.60039267]
[1765510765724,0.00063071,92360.0,92359.0,0.60039267]
[1765510766074,0.00063071,92360.0,92359.0,0.60472594]
[1765510766804,0.0004,92380.0,92377.0,0.0108252]
[1765510766974,0.00044215,92380.0,92379.0,0.30964579]
[1765510767426,0.00044215,92380.0,92379.0,0.3139783]
[1765510767633,0.00044215,92380.0,92379.0,0.26395991]
[1765510767836,0.00044215,92380.0,92379.0,0.22083193]
[1765510768233,0.00044215,92380.0,92379.0,0.00433251]
[1765510768846,0.00144215,92380.0,92379.0,0.00633251]
[1765510769147,0.00144215,92380.0,92379.0,0.00433251]
[1765510769389,0.00044215,92380.0,92379.0,0.00533251]
[1765510769868,0.00144215,92380.0,92379.0,0.00733251]
[1765510772384,0.0020188,92380.0,92379.0,0.00733251]
[1765510773592,0.00363167,92380.0,92379.0,0.00733251]
[1765510773814,0.00363167,92380.0,92379.0,0.003]
[1765510773815,0.04326167,92380.0,92379.0,0.003]
[1765510774234,0.00363167,92380.0,92379.0,0.003]
[1765510774643,0.02693167,92380.0,92379.0,0.003]
[1765510774788,0.02593167,92380.0,92379.0,0.001]
[1765510775006,0.02593167,92380.0,92376.0,0.01082532]
[1765510775168,0.04217987,92380.0,92379.0,0.001]
[1765510775383,0.04417987,92380.0,92379.0,0.001]
[1765510775592,0.03817987,92380.0,92376.0,0.01082532]
[1765510776059,0.01587987,92380.0,92379.0,0.001]
[1765510776442,0.03817987,92380.0,92377.0,0.0108252]
[1765510776605,0.02735502,92380.0,92377.0,0.0108252]
[1765510776805,0.02735502,92380.0,92377.0,0.22732896]
[1765510777101,0.02535502,92380.0,92377.0,0.22732896]
[1765510777335,0.02635502,92380.0,92377.0,0.22732896]
[1765510777551,0.02735502,92380.0,92377.0,0.22732896]
[1765510777770,0.00305502,92380.0,92377.0,0.22732896]
[1765510778215,0.00405502,92380.0,92377.0,0.22732896]
[1765510778440,0.00144215,92380.0,92379.0,0.21649942]
[1765510778850,0.00244215,92380.0,92379.0,0.21649942]
[1765510779237,0.00144215,92380.0,92379.0,0.21649942]
[1765510779752,0.00244215,92380.0,92379.0,0.21749942]
[1765510780322,0.00044215,92380.0,92379.0,0.21649942]
[1765510780479,0.00244215,92380.0,92379.0,0.2596274]
[1765510780677,0.0030188,92380.0,92379.0,0.2596274]
[1765510780890,0.0010188,92380.0,92379.0,0.2596274]
[1765510781093,0.0020188,92380.0,92379.0,0.2596274]
[1765510781478,0.0020188,92380.0,92379.0,0.2606274]
[1765510782087,0.0010188,92380.0,92379.0,0.2596274]
[1765510782266,0.0020188,92380.0,92379.0,0.2616274]
[1765510784962,0.0020188,92380.0,92379.0,0.2619074]
[1765510788277,0.0020188,92380.0,92379.0,0.2737474]
[1765510801146,0.0004,92400.0,92379.0,0.2737474]
[1765510801147,0.0004,92400.0,92399.0,0.04312798]
[1765510801345,0.00044215,92400.0,92399.0,0.61737892]
[1765510801783,0.00044215,92400.0,92399.0,0.62906892]
[1765510803289,0.00144215,92400.0,92399.0,0.63506892]
[1765510805045,0.00144215,92400.0,92399.0,0.71262461]
[1765510805262,0.00144215,92400.0,92399.0,0.63506892]
[1765510805461,0.00144215,92400.0,92399.0,0.71262461]
[1765510806173,0.00144215,92400.0,92399.0,0.63506892]
[1765510806518,0.00144215,92400.0,92399.0,0.61798892]
[1765510806831,0.00144215,92400.0,92399.0,0.54485553]
[1765510806832,0.0020186,92400.0,92399.0,0.54485553]
[1765510807021,0.0020186,92400.0,92399.0,0.01769]
[1765510807022,0.04465147,92400.0,92399.0,0.01769]
[1765510807213,0.05353222,92400.0,92399.0,0.006]
[1765510807590,0.04465147,92400.0,92399.0,0.006]
[1765510807934,0.04365147,92400.0,92399.0,0.002]
[1765510808212,0.01082297,92396.0,92392.0,0.06502532]
[1765510808367,0.01243584,92396.0,92392.0,0.06502532]
[1765510808590,0.00037472,92393.0,92392.0,0.06502532]
[1765510808790,0.00198759,92393.0,92392.0,0.06502532]
[1765510809027,0.00198759,92393.0,92392.0,0.03253073]
[1765510809776,0.00198759,92393.0,92391.0,0.01082356]
[1765510809986,0.00261287,92393.0,92392.0,0.001]
[1765510810187,0.05303571,92393.0,92392.0,0.001]
[1765510810395,0.07109571,92393.0,92392.0,0.001]
[1765510810597,0.0108245,92383.0,92380.0,0.032498]
[1765510810830,0.21650879,92375.0,92373.0,0.03253073]
[1765510811043,0.01082532,92376.0,92373.0,0.04335523]
[1765510811275,0.01082473,92381.0,92376.0,0.21650487]
[1765510811477,0.01169,92382.0,92379.0,0.01082497]
[1765510812033,0.01606,92380.0,92375.0,0.01082543]
[1765510812207,0.01606,92380.0,92376.0,0.01082532]
[1765510813710,0.02788485,92380.0,92377.0,0.0108252]
[1765510814118,0.01606,92378.0,92376.0,0.002]
[1765510814336,0.06914629,92378.0,92375.0,0.01082543]
[1765510814543,0.01606,92378.0,92375.0,0.01082543]
[1765510814737,0.01082473,92381.0,92378.0,0.01082508]
[1765510815719,0.001,92380.0,92378.0,0.01082508]
[1765510816224,0.02251461,92382.0,92379.0,0.22732439]
[1765510816406,0.001,92381.0,92379.0,0.22732439]
[1765510816599,0.001,92381.0,92379.0,0.01082497]
[1765510816808,0.02541,92381.0,92379.0,0.01082497]
[1765510817012,0.02441,92381.0,92379.0,0.01082497]
[1765510817224,0.02441,92381.0,92379.0,0.01282497]
[1765510818765,0.02441,92381.0,92379.0,0.01082497]
[1765510818964,0.02613,92381.0,92379.0,0.01182497]
[1765510819534,0.02613,92381.0,92379.0,0.22832347]
[1765510819765,0.02613,92381.0,92379.0,0.01182497]
[1765510820840,0.02613,92381.0,92379.0,0.2283232]
[1765510821065,0.02613,92381.0,92379.0,0.01182497]
[1765510821278,0.002,92381.0,92379.0,0.01182497]
[1765510821458,0.002,92381.0,92379.0,0.22832316]
[1765510821658,0.02641,92381.0,92379.0,0.22832316]
[1765510821869,0.002,92381.0,92379.0,0.22832316]
[1765510823302,0.002,92381.0,92380.0,0.0216497]
[1765510824514,0.001,92381.0,92379.0,0.22732316]
[1765510824913,0.002,92381.0,92380.0,0.001]
[1765510825112,0.001,92381.0,92380.0,0.001]
[1765510825318,0.00023061,92388.0,92387.0,0.21648067]
[1765510826479,0.00123061,92388.0,92387.0,0.21748067]
[1765510826731,0.00323061,92388.0,92387.0,0.21748067]
[1765510827972,0.00323061,92388.0,92387.0,0.001]
[1765510828326,0.00323061,92388.0,92387.0,0.03353073]
[1765510829282,0.04359061,92388.0,92387.0,0.03353073]
[1765510831564,0.07054307,92388.0,92387.0,0.001]
[1765510833239,0.04359061,92388.0,92387.0,0.21748067]
[1765510833562,0.04359061,92388.0,92387.0,0.001]
[1765510835700,0.00323061,92388.0,92387.0,0.03353073]
[1765510837451,0.00223061,92388.0,92387.0,0.03253073]
[1765510837673,0.00023061,92388.0,92387.0,0.03253073]
[1765510837852,0.00123061,92388.0,92387.0,0.03453073]
[1765510838059,0.00123061,92388.0,92387.0,0.002]
[1765510840253,0.00123061,92388.0,92387.0,0.02364806]
[1765510840499,0.00123061,92388.0,92387.0,0.06677604]
[1765510840698,0.00123061,92388.0,92387.0,0.04512798]
[1765510840916,0.00123061,92388.0,92387.0,0.002]
[1765510846357,0.00123061,92388.0,92387.0,0.02364806]
[1765510846563,0.00123061,92388.0,92387.0,0.06677604]
[1765510847816,0.00123061,92388.0,92387.0,0.04512798]
[1765510848026,0.00123061,92388.0,92387.0,0.07765871]
[1765510848232,0.00123061,92388.0,92387.0,0.03453073]
[1765510853287,0.00123061,92388.0,92387.0,0.2510114]
[1765510858907,0.00123061,92388.0,92387.0,0.60173628]
[1765510859124,0.0002722,92388.0,92387.0,0.60173628]
[1765510860116,0.00044215,92400.0,92399.0,0.23646553]
[1765510860310,0.00044215,92400.0,92399.0,0.27666053]
[1765510860527,0.000788,92400.0,92399.0,0.27666053]
[1765510860727,0.000788,92400.0,92399.0,0.25354553]
[1765510861049,0.000788,92400.0,92399.0,0.27666053]
[1765510861850,0.000788,92400.0,92399.0,0.27766053]
[1765510862286,0.001788,92400.0,92399.0,0.27966053]
[1765510864675,0.001788,92400.0,92399.0,0.21945255]
[1765510865248,0.001788,92400.0,92399.0,0.003]
[1765510865249,0.06601332,92400.0,92399.0,0.003]
[1765510865461,0.04118332,92400.0,92399.0,0.003]
[1765510865636,0.02522332,92400.0,92399.0,0.003]
[1765510866097,0.04018332,92400.0,92399.0,0.001]
[1765510866305,0.10960783,92400.0,92399.0,0.002]
[1765510866506,0.12668783,92400.0,92399.0,0.002]
[1765510867117,0.12668783,92400.0,92399.0,0.001]
[1765510867456,0.01082321,92394.0,92390.0,0.01082368]
[1765510867686,0.01243608,92394.0,92390.0,0.01082368]
[1765510867886,0.00161287,92394.0,92391.0,0.22729486]
[1765510868135,0.01243608,92394.0,92391.0,0.01082356]
[1765510868305,0.00161287,92394.0,92391.0,0.01082356]
[1765510868686,0.00361287,92394.0,92391.0,0.01082356]
[1765510868883,0.00161287,92394.0,92391.0,0.01082356]
[1765510869527,0.00261287,92394.0,92391.0,0.22829359]
[1765510870492,0.00461287,92394.0,92391.0,0.22829359]
[1765510872328,0.00461287,92394.0,92393.0,0.21646661]
[1765510873597,0.00161287,92394.0,92393.0,0.21646661]
[1765510873945,0.00561287,92394.0,92393.0,0.21746661]
[1765510874146,0.00561287,92394.0,92393.0,0.001]
[1765510874477,0.04640287,92394.0,92393.0,0.001]
[1765510874863,0.02157287,92394.0,92393.0,0.001]
[1765510875069,0.00561287,92394.0,92393.0,0.001]
[1765510880592,0.00561287,92394.0,92388.0,0.227302]
[1765510880593,0.22733846,92374.0,92370.0,0.07775432]
[1765510880816,0.0154,92372.0,92344.0,0.07775432]
[1765510881039,0.0154,92372.0,92342.0,0.09699559]
[1765510881040,0.02742,92356.0,92345.0,0.01082895]
[1765510881245,0.02742,92356.0,92349.0,0.01082848]
[1765510881447,0.02742,92356.0,92350.0,0.01082837]
[1765510881967,0.02742,92356.0,92355.0,0.00144865]
[1765510882178,0.02742,92356.0,92355.0,0.00244865]
[1765510882380,0.05128,92356.0,92355.0,0.00144865]
[1765510883940,0.05228,92356.0,92355.0,0.00144865]
[1765510884099,0.05328,92356.0,92355.0,0.00244865]
[1765510886214,0.11460553,92356.0,92355.0,0.00244865]
[1765510886410,0.15920004,92356.0,92355.0,0.00244865]
[1765510887276,0.15820004,92356.0,92355.0,0.00144865]
[1765510887683,0.05289287,92356.0,92355.0,0.00144865]
[1765510887883,0.00361287,92356.0,92355.0,0.00144865]
[1765510888087,0.00561287,92356.0,92355.0,0.00244865]
[1765510889261,0.04487287,92356.0,92355.0,0.00244865]
[1765510890795,0.02101287,92356.0,92355.0,0.00244865]
[1765510890996,0.04487287,92356.0,92355.0,0.00244865]
[1765510900032,0.2614262,92356.0,92355.0,0.00244865]
[1765510900394,0.04487287,92356.0,92355.0,0.00244865]
[1765510900597,0.02101287,92356.0,92355.0,0.00244865]
[1765510900792,0.00561287,92356.0,92355.0,0.00244865]
[1765510901013,0.004,92356.0,92355.0,0.21900433]
[1765510903346,0.004,92356.0,92355.0,0.19900433]
[1765510905071,0.002,92356.0,92355.0,0.22065989]
[1765510905270,0.02386,92372.0,92369.0,0.01082614]
[1765510905499,0.02390209,92372.0,92371.0,0.03253073]
[1765510907118,4.209e-05,92372.0,92371.0,0.03253073]
[1765510907532,0.01004209,92372.0,92371.0,0.03253073]
[1765510907934,4.209e-05,92372.0,92371.0,0.03253073]
[1765510908164,0.01404209,92372.0,92371.0,0.03353073]
[1765510908300,0.02404209,92372.0,92371.0,0.03453073]
[1765510914690,0.04404209,92372.0,92371.0,0.03453073]
[1765510916472,0.03404209,92372.0,92371.0,0.03353073]
[1765510916673,0.03604209,92372.0,92371.0,0.03453073]
[1765510917144,0.03404209,92372.0,92371.0,0.03353073]
[1765510917517,0.02104209,92372.0,92371.0,0.03353073]
[1765510917904,0.02604209,92372.0,92371.0,0.03353073]
[1765510918261,0.02104209,92372.0,92371.0,0.03353073]
[1765510918482,0.02404209,92372.0,92371.0,0.03353073]
[1765510923753,0.02404209,92372.0,92371.0,0.05507182]
[1765510923947,0.00404209,92372.0,92371.0,0.05507182]
[1765510926604,0.00404209,92372.0,92371.0,0.05518254]
[1765510926804,0.00404209,92372.0,92371.0,0.09831052]
[1765510933144,0.00404209,92372.0,92371.0,0.03353073]
[1765510935381,0.00404209,92372.0,92371.0,0.05013483]
[1765510937280,0.00404209,92372.0,92371.0,0.03353073]
[1765510937694,0.00404209,92372.0,92371.0,0.03329565]
[1765510940352,0.00404209,92372.0,92371.0,0.05494746]
[1765510940528,0.00404209,92372.0,92371.0,0.09807544]
[1765510944087,0.00404209,92372.0,92371.0,0.07642363]
[1765510949703,0.00404209,92372.0,92371.0,0.09653892]
[1765510954488,0.00404209,92372.0,92371.0,0.07642363]
[1765510956840,0.00404209,92372.0,92371.0,0.09578146]
[1765510963735,0.00404209,92372.0,92371.0,0.07642363]
[1765510967260,0.00404209,92372.0,92371.0,0.09676849]
[1765510968984,0.00404209,92372.0,92371.0,0.07642363]
[1765510971642,0.00404209,92372.0,92371.0,0.09340549]
[1765510972047,0.00404209,92372.0,92371.0,0.07642363]
[1765510982023,0.00404209,92372.0,92371.0,0.001]
[1765510982412,0.0297013,92372.0,92371.0,0.001]
[1765510982609,0.03131417,92372.0,92371.0,0.001]
[1765510982859,0.07142417,92372.0,92371.0,0.001]
[1765510983853,0.01082661,92365.0,92360.0,0.01082719]
[1765510984034,0.01132,92363.0,92360.0,0.01082719]
[1765510984238,0.03740236,92363.0,92360.0,0.01082719]
[1765510984431,0.03740236,92363.0,92361.0,0.01082708]
[1765510986599,0.03940236,92363.0,92361.0,0.01082708]
[1765510986995,0.06213236,92363.0,92361.0,0.01082708]
[1765510987202,0.03840236,92363.0,92362.0,0.21653926]
[1765510987400,0.001,92363.0,92362.0,0.21653926]
[1765510988098,0.002,92363.0,92362.0,0.21653926]
[1765510988503,0.003,92363.0,92362.0,0.21753926]
[1765510989171,0.001,92363.0,92362.0,0.21753926]
[1765510989575,0.003,92363.0,92362.0,0.21753926]
[1765511022111,0.003,92363.0,92362.0,0.27198724]
[1765511024889,0.003,92363.0,92362.0,0.22885926]
[1765511029741,0.003,92363.0,92362.0,0.27198724]
[1765511029940,0.003,92363.0,92362.0,0.34990568]
[1765511030095,0.003,92363.0,92362.0,0.27198724]
[1765511032135,0.003,92363.0,92362.0,0.34984293]
[1765511034188,0.003,92363.0,92362.0,0.27198724]
[1765511034353,0.003,92363.0,92362.0,0.34984293]
[1765511035213,0.003,92363.0,92362.0,0.27198724]
[1765511041654,0.003,92363.0,92362.0,0.32200563]
[1765511042272,0.003,92363.0,92362.0,0.3998132]
[1765511042673,0.003,92363.0,92362.0,0.61270563]
[1765511044357,0.002,92363.0,92362.0,0.61170563]
[1765511044558,4.209e-05,92372.0,92371.0,0.25964615]
[1765511045167,4.209e-05,92372.0,92371.0,0.28216615]
[1765511045927,0.00104209,92372.0,92371.0,0.28316615]
[1765511046171,0.00304209,92372.0,92371.0,0.28316615]
[1765511060716,0.00304209,92372.0,92371.0,0.24003817]
[1765511069622,0.00465496,92372.0,92371.0,0.24003817]
[1765511100474,0.00304209,92372.0,92371.0,0.28316615]
[1765511107353,0.00304209,92372.0,92371.0,0.36096146]
[1765511108814,0.00304209,92372.0,92371.0,0.31783348]
[1765511109017,0.00304209,92372.0,92371.0,0.36785187]
[1765511109221,0.00304209,92372.0,92371.0,0.33318454]
[1765511113414,0.00304209,92372.0,92371.0,0.25711817]
[1765511114764,0.00304209,92372.0,92371.0,0.24003817]
[1765511140356,0.00304209,92372.0,92371.0,0.31783348]
[1765511144080,0.05404209,92372.0,92371.0,0.24003817]
[1765511144751,0.01497209,92372.0,92371.0,0.24003817]
[1765511145230,0.00304209,92372.0,92371.0,0.24003817]
[1765511145408,0.00304209,92372.0,92371.0,0.28316615]
[1765511145654,0.00304209,92372.0,92371.0,0.24003817]
[1765511153243,0.00304209,92372.0,92371.0,0.28316615]
[1765511153858,0.00304209,92372.0,92371.0,0.24003817]
[1765511154097,0.00304209,92372.0,92371.0,0.28316615]
[1765511154292,0.00304209,92372.0,92371.0,0.24003817]
[1765511162202,0.03013209,92372.0,92371.0,0.24003817]
[1765511162406,0.05494209,92372.0,92371.0,0.02352]
[1765511162704,0.05655496,92372.0,92371.0,0.02352]
[1765511162850,0.05655496,92372.0,92371.0,0.001]
[1765511168384,0.06655585,92372.0,92371.0,0.001]
[1765511168781,0.10114947,92372.0,92371.0,0.001]
[1765511169279,0.01082649,92366.0,92363.0,0.01082684]
[1765511169693,0.02709,92364.0,92363.0,0.01082684]
[1765511170378,0.0519,92364.0,92363.0,0.01082684]
[1765511171039,0.0519,92364.0,92363.0,0.01182684]
[1765511171206,0.001,92366.0,92364.0,0.21653458]
[1765511172171,0.01158,92369.0,92368.0,0.2165252]
[1765511172595,0.02709,92369.0,92368.0,0.2165252]
[1765511173120,0.0519,92369.0,92368.0,0.2165252]
[1765511173983,0.0529,92369.0,92368.0,0.2175252]
[1765511174410,0.0549,92369.0,92368.0,0.2175252]
[1765511175626,0.01458,92369.0,92368.0,0.2175252]
[1765511175844,0.003,92369.0,92368.0,0.2175252]
[1765511176015,0.003,92369.0,92368.0,0.27523318]
[1765511179213,0.003,92369.0,92368.0,0.26065318]
[1765511190933,0.003,92369.0,92368.0,0.2175252]
[1765511210496,0.003,92369.0,92368.0,0.26065318]
[1765511210708,0.003,92369.0,92368.0,0.60137157]
[1765511210935,0.00066434,92369.0,92368.0,0.61327157]
[1765511211352,0.00066434,92369.0,92368.0,0.71064821]
[1765511211557,0.00066434,92369.0,92368.0,0.61327157]
[1765511211735,0.00066434,92369.0,92368.0,0.61227157]